fUST/lending_fUST_20250906
["ID","MTS","AMOUNT","RATE_DAILY","PERIOD"]
[383713111,1757097056521,-480.0,0.00015068,2]
[383713113,1757097056531,-480.0,0.00015068,2]
[383713115,1757097056541,-500.3,0.00015068,2]
[383713117,1757097056551,-480.0,0.00015068,2]
[383713119,1757097056561,-177.94,0.00015068,2]
[383713121,1757097056571,-627.89,0.00015068,2]
[383713123,1757097056580,-480.0,0.00015068,2]
[383713125,1757097056590,-361.76560957,0.00015068,2]
[383713128,1757097056600,-480.0,0.00015068,2]
[383713130,1757097056610,-480.0,0.00015068,2]
[383713132,1757097056620,-480.0,0.00015068,2]
[383713134,1757097056630,-899.53,0.00015068,2]
[383713135,1757097056639,-480.0,0.00015068,2]
[383713138,1757097056649,-1500.0,0.00015068,2]
[383713140,1757097056658,-898.69175826,0.00015068,2]
[383713142,1757097056668,-151.0,0.000151,2]
[383713144,1757097056677,-500.0,0.00015104,2]
[383713146,1757097056686,-500.0,0.00015104,2]
[383713148,1757097056696,-251.164,0.00015128,2]
[383713150,1757097056705,-500.0,0.0001514,2]
[383713152,1757097056715,-500.0,0.0001514,2]
[383713154,1757097056725,-611.57288878,0.0001514,2]
[383713155,1757097056733,-500.0,0.0001514,2]
[383713157,1757097056742,-500.0,0.0001514,2]
[383713159,1757097056752,-500.0,0.0001514,2]
[383713161,1757097056761,-500.0,0.0001514,2]
[383713163,1757097056771,-500.0,0.0001514,2]
[383713166,1757097056780,-500.0,0.0001514,2]
[383713168,1757097056790,-500.0,0.0001514,2]
[383713169,1757097056799,-620.73284585,0.0001514,2]
[383713172,1757097056810,-500.0,0.0001514,2]
[383713174,1757097056819,-500.0,0.0001514,2]
[383713176,1757097056830,-500.0,0.0001514,2]
[383713178,1757097056839,-720.0,0.00015143,2]
[383713180,1757097056850,-609.49502903,0.0001516,2]
[383713182,1757097056861,-160.0,0.00015231,2]
[383713184,1757097056871,-18634.04076032,0.00015249,2]
[383713186,1757097056881,-187.78006525,0.00015255,2]
[383713188,1757097056891,-250.0,0.00015275,2]
[383713190,1757097056901,-389.0,0.00015329,2]
[383713192,1757097056910,-480.0,0.00015342,2]
[383713194,1757097056919,-480.0,0.00015342,2]
[383713196,1757097056929,-480.0,0.00015342,2]
[383713198,1757097056939,-480.0,0.00015342,2]
[383713199,1757097056948,-480.0,0.00015342,2]
[383713202,1757097056957,-480.0,0.00015342,2]
[383713204,1757097056967,-480.0,0.00015342,2]
[383713206,1757097056976,-480.0,0.00015342,2]
[383713208,1757097056985,-480.0,0.00015342,2]
[383713210,1757097056994,-230.02,0.00015342,2]
[383713212,1757097057003,-262.4,0.00015342,2]
[383713214,1757097057012,-487.74878256,0.00015342,2]
[383713216,1757097057022,-480.0,0.00015342,2]
[383713218,1757097057031,-480.0,0.00015342,2]
[383713220,1757097057040,-480.0,0.00015342,2]
[383713222,1757097057049,-480.0,0.00015342,2]
[383713224,1757097057059,-480.0,0.00015342,2]
[383713226,1757097057068,-480.0,0.00015342,2]
[383713228,1757097057078,-480.0,0.00015342,2]
[383713230,1757097057087,-480.0,0.00015342,2]
[383713232,1757097057096,-480.0,0.00015342,2]
[383713234,1757097057105,-480.0,0.00015342,2]
[383713236,1757097057114,-176.20761432,0.00015342,2]
[383713238,1757097057123,-480.0,0.00015342,2]
[383713240,1757097057132,-480.0,0.00015342,2]
[383713242,1757097057141,-480.0,0.00015342,2]
[383713244,1757097057151,-480.0,0.00015342,2]
[383713246,1757097057160,-480.0,0.00015342,2]
[383713248,1757097057170,-480.0,0.00015342,2]
[383713249,1757097057178,-282.92,0.00015342,2]
[383713251,1757097057187,-480.0,0.00015342,2]
[383713254,1757097057199,-480.0,0.00015342,2]
[383713255,1757097057208,-480.0,0.00015342,2]
[383713258,1757097057218,-480.0,0.00015342,2]
[383713260,1757097057227,-480.0,0.00015342,2]
[383713261,1757097057236,-480.0,0.00015342,2]
[383713264,1757097057248,-480.0,0.00015342,2]
[383713265,1757097057257,-480.0,0.00015342,2]
[383713268,1757097057267,-593.84443505,0.00015342,2]
[383713269,1757097057276,-480.0,0.00015342,2]
[383713271,1757097057285,-480.0,0.00015342,2]
[383713274,1757097057295,-480.0,0.00015342,2]
[383713276,1757097057306,-546.82993872,0.00015342,2]
[383713278,1757097057315,-151.0,0.00015342,2]
[383713280,1757097057325,-480.0,0.00015342,2]
[383713282,1757097057334,-480.0,0.00015342,2]
[383713284,1757097057343,-480.0,0.00015342,2]
[383713286,1757097057352,-151.0,0.00015342,2]
[383713288,1757097057361,-151.325215,0.00015342,2]
[383713290,1757097057370,-480.0,0.00015342,2]
[383713292,1757097057379,-151.0,0.00015342,2]
[383713294,1757097057388,-480.0,0.00015342,2]
[383713296,1757097057398,-480.0,0.00015342,2]
[383713298,1757097057408,-480.0,0.00015342,2]
[383713300,1757097057417,-480.0,0.00015342,2]
[383713302,1757097057426,-480.0,0.00015342,2]
[383713304,1757097057435,-480.0,0.00015342,2]
[383713306,1757097057445,-480.0,0.00015342,2]
[383713308,1757097057458,-480.0,0.00015342,2]
[383713310,1757097057467,-480.0,0.00015342,2]
[383713312,1757097057477,-480.0,0.00015342,2]
[383713314,1757097057486,-480.0,0.00015342,2]
[383713316,1757097057496,-480.0,0.00015342,2]
[383713318,1757097057505,-480.0,0.00015342,2]
[383713329,1757097057600,-480.0,0.00015342,2]
[383713331,1757097057610,-480.0,0.00015342,2]
[383713333,1757097057620,-480.0,0.00015342,2]
[383713335,1757097057629,-225.431241,0.00015342,2]
[383713337,1757097057638,-190.86631507,0.00015342,2]
[383713339,1757097057648,-151.0,0.00015342,2]
[383713341,1757097057657,-151.0,0.00015342,2]
[383713343,1757097057667,-480.0,0.00015342,2]
[383713345,1757097057676,-480.0,0.00015342,2]
[383713347,1757097057685,-409.39498672,0.00015342,2]
[383713349,1757097057695,-480.0,0.00015342,2]
[383713351,1757097057704,-151.0,0.00015342,2]
[383713353,1757097057713,-480.0,0.00015342,2]
[383713355,1757097057722,-480.0,0.00015342,2]
[383713357,1757097057732,-151.780187,0.00015342,2]
[383713359,1757097057742,-280.40320691,0.00015342,2]
[383713361,1757097057751,-480.0,0.00015342,2]
[383713363,1757097057761,-480.0,0.00015342,2]
[383713365,1757097057770,-480.0,0.00015342,2]
[383713367,1757097057779,-480.0,0.00015342,2]
[383713369,1757097057788,-480.0,0.00015342,2]
[383713371,1757097057798,-151.0,0.00015342,2]
[383713373,1757097057807,-480.0,0.00015342,2]
[383713375,1757097057818,-480.0,0.00015342,2]
[383713377,1757097057827,-161.46713333,0.00015342,2]
[383713379,1757097057837,-480.0,0.00015342,2]
[383713381,1757097057847,-270.425097,0.00015342,2]
[383713383,1757097057857,-480.0,0.00015342,2]
[383713385,1757097057867,-839.03,0.00015342,2]
[383713387,1757097057876,-480.0,0.00015342,2]
[383713389,1757097057886,-763.77,0.00015342,2]
[383713391,1757097057895,-480.0,0.00015342,2]
[383713393,1757097057905,-220.77,0.00015342,2]
[383713395,1757097057915,-344.07,0.00015342,2]
[383713397,1757097057924,-480.0,0.00015342,2]
[383713399,1757097057933,-480.0,0.00015342,2]
[383713401,1757097057943,-4981.85,0.00015342,2]
[383713403,1757097057952,-651.76,0.00015342,2]
[383713405,1757097057962,-151.0,0.00015342,2]
[383713407,1757097057971,-151.0,0.00015342,2]
[383713409,1757097057980,-480.0,0.00015342,2]
[383713411,1757097057990,-151.0,0.00015342,2]
[383713414,1757097058001,-480.0,0.00015342,2]
[383713416,1757097058011,-732.54,0.00015342,2]
[383713418,1757097058022,-480.0,0.00015342,2]
[383713419,1757097058032,-867.62,0.00015342,2]
[383713422,1757097058041,-480.0,0.00015342,2]
[383713424,1757097058054,-480.0,0.00015342,2]
[383713426,1757097058063,-480.0,0.00015342,2]
[383713428,1757097058072,-151.0,0.00015342,2]
[383713430,1757097058082,-480.0,0.00015342,2]
[383713432,1757097058092,-480.0,0.00015342,2]
[383713434,1757097058101,-480.0,0.00015342,2]
[383713436,1757097058111,-850.08,0.00015342,2]
[383713438,1757097058121,-480.0,0.00015342,2]
[383713440,1757097058131,-151.0,0.00015342,2]
[383713442,1757097058140,-480.0,0.00015342,2]
[383713444,1757097058149,-1503.21,0.00015342,2]
[383713446,1757097058158,-480.0,0.00015342,2]
[383713448,1757097058167,-480.0,0.00015342,2]
[383713450,1757097058177,-2038.87,0.00015342,2]
[383713452,1757097058186,-480.0,0.00015342,2]
[383713454,1757097058195,-480.0,0.00015342,2]
[383713456,1757097058205,-480.0,0.00015342,2]
[383713458,1757097058214,-480.0,0.00015342,2]
[383713460,1757097058223,-480.0,0.00015342,2]
[383713462,1757097058232,-480.0,0.00015342,2]
[383713464,1757097058241,-791.61,0.00015342,2]
[383713466,1757097058250,-480.0,0.00015342,2]
[383713468,1757097058259,-480.0,0.00015342,2]
[383713470,1757097058268,-480.0,0.00015342,2]
[383713472,1757097058276,-480.0,0.00015342,2]
[383713474,1757097058286,-480.0,0.00015342,2]
[383713476,1757097058295,-2771.01,0.00015342,2]
[383713478,1757097058305,-835.12,0.00015342,2]
[383713480,1757097058315,-1300.96,0.00015342,2]
[383713482,1757097058325,-651.56,0.00015342,2]
[383713484,1757097058334,-480.0,0.00015342,2]
[383713486,1757097058343,-480.0,0.00015342,2]
[383713488,1757097058353,-480.0,0.00015342,2]
[383713490,1757097058362,-480.0,0.00015342,2]
[383713492,1757097058372,-480.0,0.00015342,2]
[383713494,1757097058382,-834.55,0.00015342,2]
[383713496,1757097058392,-607.54,0.00015342,2]
[383713498,1757097058400,-480.0,0.00015342,2]
[383713500,1757097058410,-480.0,0.00015342,2]
[383713502,1757097058419,-480.0,0.00015342,2]
[383713504,1757097058429,-480.0,0.00015342,2]
[383713506,1757097058439,-151.0,0.00015342,2]
[383713508,1757097058449,-480.0,0.00015342,2]
[383713510,1757097058463,-1000.0,0.00015342,2]
[383713512,1757097058472,-1000.0,0.00015342,2]
[383713514,1757097058481,-1000.0,0.00015342,2]
[383713516,1757097058491,-1000.0,0.00015342,2]
[383713518,1757097058501,-480.0,0.00015342,2]
[383713519,1757097058510,-1000.0,0.00015342,2]
[383713521,1757097058520,-1000.0,0.00015342,2]
[383713523,1757097058530,-1000.0,0.00015342,2]
[383713526,1757097058540,-1000.0,0.00015342,2]
[383713527,1757097058549,-151.0,0.00015342,2]
[383713529,1757097058558,-1000.0,0.00015342,2]
[383713531,1757097058568,-1000.0,0.00015342,2]
[383713534,1757097058578,-1000.0,0.00015342,2]
[383713536,1757097058587,-1000.0,0.00015342,2]
[383713537,1757097058596,-899.53,0.00015342,2]
[383713540,1757097058606,-1000.0,0.00015342,2]
[383713542,1757097058616,-1000.0,0.00015342,2]
[383713544,1757097058626,-1000.0,0.00015342,2]
[383713546,1757097058635,-1000.0,0.00015342,2]
[383713547,1757097058644,-151.0,0.00015342,2]
[383713549,1757097058654,-1000.0,0.00015342,2]
[383713552,1757097058664,-1000.0,0.00015342,2]
[383713554,1757097058673,-1000.0,0.00015342,2]
[383713556,1757097058683,-1000.0,0.00015342,2]
[383713558,1757097058693,-1000.0,0.00015342,2]
[383713560,1757097058702,-151.0,0.00015342,2]
[383713562,1757097058712,-1000.0,0.00015342,2]
[383713564,1757097058721,-1000.0,0.00015342,2]
[383713566,1757097058730,-1000.0,0.00015342,2]
[383713568,1757097058739,-1000.0,0.00015342,2]
[383713570,1757097058749,-151.0,0.00015342,2]
[383713572,1757097058758,-1000.0,0.00015342,2]
[383713574,1757097058768,-1000.0,0.00015342,2]
[383713576,1757097058778,-1000.0,0.00015342,2]
[383713578,1757097058787,-1000.0,0.00015342,2]
[383713580,1757097058797,-1000.0,0.00015342,2]
[383713582,1757097058806,-185.47953218,0.00015342,2]
[383713584,1757097058816,-1000.0,0.00015342,2]
[383713586,1757097058825,-1000.0,0.00015342,2]
[383713588,1757097058834,-1000.0,0.00015342,2]
[383713590,1757097058843,-1000.0,0.00015342,2]
[383713592,1757097058852,-997.666225,0.00015342,2]
[383713594,1757097058862,-151.0,0.000154,2]
[383713595,1757097058870,-151.0,0.00015448,2]
[383713597,1757097058879,-237.0284,0.00015448,2]
[383713599,1757097058888,-151.0,0.00015448,2]
[383713601,1757097058898,-151.0,0.00015448,2]
[383713603,1757097058908,-151.0,0.00015448,2]
[383713605,1757097058918,-151.0,0.00015448,2]
[383713607,1757097058930,-151.0,0.00015448,2]
[383713609,1757097058940,-151.0,0.00015448,2]
[383713611,1757097058950,-151.533464,0.00015448,2]
[383713613,1757097058959,-480.0,0.00015616,2]
[383713615,1757097058969,-449.70201307,0.00015616,2]
[383713617,1757097058978,-480.0,0.00015616,2]
[383713619,1757097058987,-480.0,0.00015616,2]
[383713621,1757097058997,-480.0,0.00015616,2]
[383713623,1757097059007,-480.0,0.00015616,2]
[383713624,1757097059015,-480.0,0.00015616,2]
[383713626,1757097059025,-480.0,0.00015616,2]
[383713628,1757097059035,-480.0,0.00015616,2]
[383713630,1757097059044,-480.0,0.00015616,2]
[383713632,1757097059053,-480.0,0.00015616,2]
[383713634,1757097059063,-267.64009041,0.00015616,2]
[383713636,1757097059072,-480.0,0.00015616,2]
[383713645,1757097059160,-480.0,0.00015616,2]
[383713647,1757097059170,-480.0,0.00015616,2]
[383713649,1757097059180,-257.42,0.00015616,2]
[383713651,1757097059189,-480.0,0.00015616,2]
[383713653,1757097059199,-480.0,0.00015616,2]
[383713655,1757097059208,-480.0,0.00015616,2]
[383713657,1757097059217,-151.0,0.00015616,2]
[383713659,1757097059227,-508.43,0.00015616,2]
[383713661,1757097059236,-480.0,0.00015616,2]
[383713663,1757097059245,-151.0,0.00015616,2]
[383713665,1757097059255,-480.0,0.00015616,2]
[383713667,1757097059264,-480.0,0.00015616,2]
[383713669,1757097059273,-480.0,0.00015616,2]
[383713671,1757097059283,-480.0,0.00015616,2]
[383713672,1757097059292,-480.0,0.00015616,2]
[383713674,1757097059301,-480.0,0.00015616,2]
[383713676,1757097059311,-480.0,0.00015616,2]
[383713678,1757097059321,-276.52012059,0.00015616,2]
[383713680,1757097059330,-480.0,0.00015616,2]
[383713682,1757097059339,-480.0,0.00015616,2]
[383713684,1757097059349,-480.0,0.00015616,2]
[383713686,1757097059358,-552.1,0.00015616,2]
[383713688,1757097059368,-480.0,0.00015616,2]
[383713690,1757097059377,-480.0,0.00015616,2]
[383713692,1757097059387,-480.0,0.00015616,2]
[383713694,1757097059397,-480.0,0.00015616,2]
[383713696,1757097059407,-480.0,0.00015616,2]
[383713698,1757097059417,-480.0,0.00015616,2]
[383713700,1757097059426,-463.70404932,0.00015616,2]
[383713702,1757097059435,-392.47212003,0.00015616,2]
[383713704,1757097059443,-324.61271457,0.00015616,2]
[383713706,1757097059457,-480.0,0.00015616,2]
[383713708,1757097059466,-480.0,0.00015616,2]
[383713710,1757097059475,-480.0,0.00015616,2]
[383713711,1757097059485,-480.0,0.00015616,2]
[383713713,1757097059494,-480.0,0.00015616,2]
[383713715,1757097059504,-480.0,0.00015616,2]
[383713717,1757097059513,-343.14,0.00015616,2]
[383713719,1757097059523,-480.0,0.00015616,2]
[383713721,1757097059534,-839.03,0.00015616,2]
[383713723,1757097059543,-480.0,0.00015616,2]
[383713725,1757097059553,-763.77,0.00015616,2]
[383713727,1757097059563,-480.0,0.00015616,2]
[383713729,1757097059574,-480.0,0.00015616,2]
[383713731,1757097059583,-4981.85,0.00015616,2]
[383713733,1757097059592,-651.76,0.00015616,2]
[383713735,1757097059602,-480.0,0.00015616,2]
[383713737,1757097059612,-480.0,0.00015616,2]
[383713739,1757097059621,-732.54,0.00015616,2]
[383713741,1757097059630,-480.0,0.00015616,2]
[383713743,1757097059639,-867.62,0.00015616,2]
[383713745,1757097059648,-480.0,0.00015616,2]
[383713747,1757097059657,-480.0,0.00015616,2]
[383713749,1757097059667,-480.0,0.00015616,2]
[383713751,1757097059676,-850.08,0.00015616,2]
[383713753,1757097059686,-480.0,0.00015616,2]
[383713754,1757097059695,-480.0,0.00015616,2]
[383713756,1757097059704,-1503.21,0.00015616,2]
[383713758,1757097059713,-372.56,0.00015616,2]
[383713760,1757097059723,-480.0,0.00015616,2]
[383713762,1757097059733,-2038.87,0.00015616,2]
[383713764,1757097059742,-480.0,0.00015616,2]
[383713766,1757097059752,-480.0,0.00015616,2]
[383713768,1757097059761,-480.0,0.00015616,2]
[383713770,1757097059771,-480.0,0.00015616,2]
[383713772,1757097059781,-791.61,0.00015616,2]
[383713774,1757097059790,-480.0,0.00015616,2]
[383713776,1757097059799,-2771.01,0.00015616,2]
[383713778,1757097059809,-835.12,0.00015616,2]
[383713780,1757097059819,-1300.96,0.00015616,2]
[383713782,1757097059828,-651.56,0.00015616,2]
[383713784,1757097059838,-480.0,0.00015616,2]
[383713786,1757097059847,-480.0,0.00015616,2]
[383713787,1757097059856,-480.0,0.00015616,2]
[383713789,1757097059866,-834.55,0.00015616,2]
[383713791,1757097059876,-480.0,0.00015616,2]
[383713793,1757097059886,-480.0,0.00015616,2]
[383713795,1757097059896,-899.53,0.00015616,2]
[383713797,1757097059905,-151.0,0.00015616,2]
[383713799,1757097059914,-151.0,0.00015616,2]
[383713801,1757097059924,-1226.21804427,0.00015616,2]
[383713802,1757097059933,-384.96555568,0.00015652,2]
[383713804,1757097059943,-1000.0,0.00015652,2]
[383713806,1757097059952,-1000.0,0.00015688,2]
[383713808,1757097059961,-1000.0,0.00015688,2]
[383713810,1757097059971,-727.25510922,0.00015688,2]
[383713812,1757097059980,-1000.0,0.00015688,2]
[383713814,1757097059989,-1000.0,0.00015688,2]
[383713816,1757097059999,-1000.0,0.00015688,2]
[383713818,1757097060008,-1000.0,0.00015688,2]
[383713820,1757097060018,-1000.0,0.00015688,2]
[383713822,1757097060028,-1000.0,0.00015688,2]
[383713824,1757097060038,-1000.0,0.00015688,2]
[383713826,1757097060048,-260.0,0.00015779,2]
[383713827,1757097060058,-151.0,0.000158,2]
[383713829,1757097060068,-480.0,0.0001589,2]
[383713831,1757097060078,-480.0,0.0001589,2]
[383713833,1757097060088,-480.0,0.0001589,2]
[383713835,1757097060099,-480.0,0.0001589,2]
[383713837,1757097060109,-480.0,0.0001589,2]
[383713839,1757097060119,-480.0,0.0001589,2]
[383713841,1757097060131,-480.0,0.0001589,2]
[383713843,1757097060143,-480.0,0.0001589,2]
[383713845,1757097060154,-480.0,0.0001589,2]
[383713847,1757097060164,-480.0,0.0001589,2]
[383713849,1757097060174,-480.0,0.0001589,2]
[383713851,1757097060184,-269.16,0.0001589,2]
[383713853,1757097060193,-435.11,0.0001589,2]
[383713855,1757097060203,-326.3,0.0001589,2]
[383713856,1757097060212,-480.0,0.0001589,2]
[383713858,1757097060222,-488.17665519,0.0001589,2]
[383713860,1757097060232,-480.0,0.0001589,2]
[383713862,1757097060242,-480.0,0.0001589,2]
[383713864,1757097060252,-480.0,0.0001589,2]
[383713866,1757097060262,-573.65301586,0.0001589,2]
[383713868,1757097060271,-480.0,0.0001589,2]
[383713870,1757097060281,-480.0,0.0001589,2]
[383713872,1757097060291,-480.0,0.0001589,2]
[383713874,1757097060300,-522.20596089,0.0001589,2]
[383713876,1757097060310,-480.0,0.0001589,2]
[383713878,1757097060320,-480.0,0.0001589,2]
[383713880,1757097060330,-480.0,0.0001589,2]
[383713882,1757097060340,-286.86,0.0001589,2]
[383713884,1757097060351,-529.25793785,0.0001589,2]
[383713886,1757097060361,-839.03,0.0001589,2]
[383713887,1757097060370,-480.0,0.0001589,2]
[383713889,1757097060380,-763.77,0.0001589,2]
[383713891,1757097060390,-480.0,0.0001589,2]
[383713893,1757097060400,-480.0,0.0001589,2]
[383713895,1757097060410,-4981.85,0.0001589,2]
[383713897,1757097060419,-651.76,0.0001589,2]
[383713899,1757097060429,-480.0,0.0001589,2]
[383713901,1757097060438,-480.0,0.0001589,2]
[383713903,1757097060449,-732.54,0.0001589,2]
[383713905,1757097060463,-480.0,0.0001589,2]
[383713907,1757097060473,-867.62,0.0001589,2]
[383713909,1757097060482,-480.0,0.0001589,2]
[383713911,1757097060492,-480.0,0.0001589,2]
[383713913,1757097060502,-850.08,0.0001589,2]
[383713915,1757097060512,-480.0,0.0001589,2]
[383713917,1757097060522,-480.0,0.0001589,2]
[383713919,1757097060532,-1503.21,0.0001589,2]
[383713929,1757097060543,-480.0,0.0001589,2]
[383713931,1757097060637,-2038.87,0.0001589,2]
[383713933,1757097060647,-480.0,0.0001589,2]
[383713935,1757097060658,-480.0,0.0001589,2]
[383713937,1757097060668,-480.0,0.0001589,2]
[383713939,1757097060678,-480.0,0.0001589,2]
[383713941,1757097060689,-791.61,0.0001589,2]
[383713943,1757097060699,-155.86207783,0.0001589,2]
[383713945,1757097060708,-2771.01,0.0001589,2]
[383713947,1757097060718,-835.12,0.0001589,2]
[383713949,1757097060728,-1300.96,0.0001589,2]
[383713951,1757097060738,-651.56,0.0001589,2]
[383713953,1757097060749,-480.0,0.0001589,2]
[383713955,1757097060759,-480.0,0.0001589,2]
[383713957,1757097060768,-834.55,0.0001589,2]
[383713958,1757097060778,-480.0,0.0001589,2]
[383713960,1757097060788,-480.0,0.0001589,2]
[383713962,1757097060799,-899.53,0.0001589,2]
[383713964,1757097060810,-151.0,0.0001598,2]
[383713966,1757097060821,-151.0,0.0001598,2]
[383713968,1757097060831,-2033.6274721,0.00016027,2]
[383713970,1757097060842,-1016.90492088,0.00016046,2]
[383713972,1757097060854,-11996.54639781,0.00016064,2]
[383713974,1757097060864,-151.0,0.00016164,2]
[383713976,1757097060874,-151.0,0.00016164,2]
[383713978,1757097060884,-480.0,0.00016164,2]
[383713980,1757097060893,-152.512362,0.00016164,2]
[383713982,1757097060903,-151.0,0.00016164,2]
[383713984,1757097060913,-154.649295,0.00016164,2]
[383713985,1757097060923,-480.0,0.00016164,2]
[383713987,1757097060933,-480.0,0.00016164,2]
[383713989,1757097060942,-480.0,0.00016164,2]
[383713991,1757097060952,-2969.90103621,0.00016164,2]
[383713993,1757097060962,-480.0,0.00016164,2]
[383713995,1757097060972,-480.0,0.00016164,2]
[383713997,1757097060982,-480.0,0.00016164,2]
[383713999,1757097060992,-480.0,0.00016164,2]
[383714001,1757097061003,-480.0,0.00016164,2]
[383714003,1757097061013,-480.0,0.00016164,2]
[383714005,1757097061023,-480.0,0.00016164,2]
[383714007,1757097061033,-210.11192519,0.00016164,2]
[383714009,1757097061043,-839.03,0.00016164,2]
[383714011,1757097061052,-270.51,0.00016164,2]
[383714013,1757097061062,-763.77,0.00016164,2]
[383714015,1757097061071,-480.0,0.00016164,2]
[383714017,1757097061081,-4981.85,0.00016164,2]
[383714018,1757097061090,-651.76,0.00016164,2]
[383714019,1757097061099,-480.0,0.00016164,2]
[383714020,1757097061109,-480.0,0.00016164,2]
[383714021,1757097061119,-732.54,0.00016164,2]
[383714022,1757097061128,-867.62,0.00016164,2]
[383714023,1757097061137,-480.0,0.00016164,2]
[383714024,1757097061147,-480.0,0.00016164,2]
[383714025,1757097061157,-850.08,0.00016164,2]
[383714026,1757097061166,-480.0,0.00016164,2]
[383714027,1757097061175,-1503.21,0.00016164,2]
[383714028,1757097061185,-480.0,0.00016164,2]
[383714029,1757097061194,-2038.87,0.00016164,2]
[383714030,1757097061204,-480.0,0.00016164,2]
[383714031,1757097061213,-151.0,0.00016164,2]
[383714032,1757097061223,-151.0,0.00016164,2]
[383714033,1757097061233,-480.0,0.00016164,2]
[383714034,1757097061242,-480.0,0.00016164,2]
[383714035,1757097061252,-480.0,0.00016164,2]
[383714036,1757097061261,-791.61,0.00016164,2]
[383714037,1757097061271,-151.0,0.00016164,2]
[383714038,1757097061281,-151.0,0.00016164,2]
[383714039,1757097061291,-151.0,0.00016164,2]
[383714040,1757097061300,-151.0,0.00016164,2]
[383714041,1757097061309,-151.0,0.00016164,2]
[383714042,1757097061318,-151.0,0.00016164,2]
[383714043,1757097061327,-151.0,0.00016164,2]
[383714044,1757097061337,-283.041675,0.00016164,2]
[383714045,1757097061346,-2771.01,0.00016164,2]
[383714046,1757097061356,-151.0,0.00016164,2]
[383714047,1757097061365,-835.12,0.00016164,2]
[383714048,1757097061374,-1300.96,0.00016164,2]
[383714049,1757097061383,-651.56,0.00016164,2]
[383714051,1757097061393,-491.17609362,0.00016164,2]
[383714053,1757097061404,-480.0,0.00016164,2]
[383714055,1757097061414,-834.55,0.00016164,2]
[383714057,1757097061423,-480.0,0.00016164,2]
[383714059,1757097061433,-480.0,0.00016164,2]
[383714061,1757097061443,-899.53,0.00016164,2]
[383714062,1757097061457,-1500.0,0.00016199,2]
[383714064,1757097061467,-151.0,0.000162,2]
[383714066,1757097061477,-1500.0,0.00016236,2]
[383714068,1757097061487,-1500.0,0.00016236,2]
[383714070,1757097061499,-1500.0,0.00016236,2]
[383714073,1757097061509,-1500.0,0.00016236,2]
[383714075,1757097061519,-1447.40581569,0.00016236,2]
[383714077,1757097061529,-1002.36839475,0.00016236,2]
[383714079,1757097061540,-1500.0,0.00016236,2]
[383714080,1757097061551,-1500.0,0.00016236,2]
[383714083,1757097061561,-1500.0,0.00016236,2]
[383714084,1757097061571,-191.55551,0.00016256,2]
[383714087,1757097061581,-191.55551,0.00016256,2]
[383714088,1757097061590,-191.55551,0.00016256,2]
[383714090,1757097061600,-549.37668,0.00016256,2]